[Event "Almaty Open 2019"]
[Site "Almaty"]
[Date "2019.10.13"]
[Round "8.11"]
[White "Isanzhulov, Arystan"]
[Black "Simantsev, Mikhail"]
[Result "0-1"]
[ECO "B40"]
[WhiteElo "2305"]
[BlackElo "2365"]
[Annotator "NA"]
[PlyCount "98"]
[EventDate "2019.10.07"]
[EventType "swiss"]
[EventCountry "KAZ"]
[SourceTitle "playchess.com"]
[Source "ChessBase"]
[SourceQuality "1"]
[TimeControl "5400+30"]

1. e4 {[%emt 0:00:00]} c5 {[%emt 0:09:43]} 2. Nf3 {[%emt 0:00:00]} e6 {[%emt 0:00:01]} 3. g3 {[%emt 0:00:00]} Nc6 {[%emt 0:01:15]} 4. Bg2 {[%emt 0:00:00]} Nf6 {[%emt 0:01:10]} 5. Qe2 {[%emt 0:00:00]} d5 {[%emt 0:02:01]} 6. exd5 {[%emt 0:00:17]} Nxd5 {[%emt 0:03:01]} 7. O-O {[%emt 0:03:03]} g6 {[%emt 0:10:25]} 8. Nc3 {[%emt 0:11:16]} Bg7 {[%emt 0:04:40]} 9. Nxd5 {[%emt 0:01:43]} Qxd5 {[%emt 0:00:38]} 10. d3 {[%emt 0:00:03]} O-O {[%emt 0:00:39]} 11. a4 {[%emt 0:03:12]} b6 {[%emt 0:06:08]} 12. a5 {[%emt 0:01:43]} Bb7 {[%emt 0:00:58]} 13. Ne1 {[%emt 0:22:36]} Qd7 {[%emt 0:08:38]} 14. a6 {[%emt 0:08:58]} Nd4 {[%emt 0:07:33]} 15. Qd1 {[%emt 0:00:09]} Bxg2 {[%emt 0:02:38]} 16. Kxg2 {[%emt 0:00:04]} Rfd8 {[%emt 0:01:39]} 17. c3 {[%emt 0:06:53]} Qd5+ {[%emt 0:06:00]} 18. f3 {[%emt 0:02:13]} Nb3 {[%emt 0:11:18]} 19. Bg5 {[%emt 0:13:21]} Rd7 {[%emt 0:04:21]} 20. c4 {[%emt 0:00:10]} Qxg5 {[%emt 0:01:15]} 21. Qxb3 {[%emt 0:00:02]} Rad8 {[%emt 0:01:18]} 22. Rd1 {[%emt 0:01:10]} h5 {[%emt 0:01:28]} 23. Qc2 {[%emt 0:01:10]} h4 {[%emt 0:04:18]} 24. Qe2 {[%emt 0:05:19]} hxg3 {[%emt 0:03:27]} 25. hxg3 {[%emt 0:00:04]} Qf5 {[%emt 0:00:40]} 26. Rh1 {[%emt 0:02:46]} Rd6 {[%emt 0:04:02]} 27. Rd2 {[%emt 0:04:38]} R8d7 {[%emt 0:02:09]} 28. Rh2 {[%emt 0:05:11]} Qg5 {[%emt 0:00:26]} 29. Rh1 {[%emt 0:02:01]} Qd8 {[%emt 0:00:27]} 30. Qd1 {[%emt 0:01:03]} Rd4 {[%emt 0:00:37]} 31. Qa4 {[%emt 0:01:31]} e5 {[%emt 0:00:38]} 32. Re2 {[%emt 0:01:02]} R4d6 {[%emt 0:01:01]} 33. Qc2 {[%emt 0:01:41]} f5 {[%emt 0:00:17]} 34. Rh3 {[%emt 0:01:04]} Rd4 {[%emt 0:00:14]} 35. Qa4 {[%emt 0:01:26]} e4 {[%emt 0:01:11]} 36. fxe4 {[%emt 0:01:21]} fxe4 {[%emt 0:00:01]} 37. Rh4 {[%emt 0:00:19]} exd3 {[%emt 0:01:35]} 38. Rxd4 {[%emt 0:00:26]} Bxd4 {[%emt 0:00:01]} 39. Re6 {[%emt 0:00:59]} d2 {[%emt 0:00:56]} 40. Nf3 {[%emt 0:00:03]} Bg7 {[%emt 0:00:40]} 41. Qd1 {[%emt 0:00:15]} Rd3 {[%emt 0:00:21]} 42. Re2 {[%emt 0:00:56]} Bh6 {[%emt 0:00:24]} 43. Re6 {[%emt 0:00:09]} Kh7 {[%emt 0:00:46]} 44. g4 {[%emt 0:00:59]} Qa8 {[%emt 0:00:22]} 45. Re7+ {[%emt 0:00:39]} Kg8 {[%emt 0:00:32]} 46. Rb7 {[%emt 0:00:04]} Qe8 {[%emt 0:00:30]} 47. g5 {[%emt 0:00:22]} Qe4 {[%emt 0:00:24]} 48. gxh6 {[%emt 0:00:39]} Qg4+ {[%emt 0:00:17]} 49. Kf2 {[%emt 0:00:01]} Rxf3+ {[%emt 0:00:19]} 0-1

[Event "Almaty Open 2019"]
[Site "Almaty"]
[Date "2019.10.13"]
[Round "8.12"]
[White "Tologontegin, Semetey"]
[Black "Balabayeva, Xeniya"]
[Result "1-0"]
[ECO "A05"]
[WhiteElo "2384"]
[BlackElo "1986"]
[Annotator "NA"]
[PlyCount "55"]
[EventDate "2019.10.07"]
[EventType "swiss"]
[EventCountry "KAZ"]
[SourceTitle "playchess.com"]
[Source "ChessBase"]
[SourceQuality "1"]
[TimeControl "5400+30"]

1. Nf3 {[%emt 0:13:59]} Nf6 {[%emt 0:00:00]} 2. b3 {[%emt 0:00:09]} d5 {[%emt 0:00:38]} 3. Bb2 {[%emt 0:00:25]} e6 {[%emt 0:01:31]} 4. e3 {[%emt 0:03:39]} c5 {[%emt 0:02:52]} 5. c4 {[%emt 0:00:10]} Nc6 {[%emt 0:01:47]} 6. cxd5 exd5 {[%emt 0:03:56]} 7. h3 {[%emt 0:00:39]} a6 {[%emt 0:06:57]} 8. d4 {[%emt 0:34:40]} cxd4 {[%emt 0:06:03]} 9. Nxd4 {[%emt 0:00:06]} Bb4+ {[%emt 0:03:36]} 10. Bc3 {[%emt 0:00:07]} Qa5 {[%emt 0:12:21]} 11. Qd2 {[%emt 0:00:39]} Bxc3 {[%emt 0:08:36]} 12. Nxc3 {[%emt 0:00:55]} O-O {[%emt 0:06:57]} 13. Be2 {[%emt 0:03:52]} Be6 {[%emt 0:11:44]} 14. O-O {[%emt 0:27:16]} Rac8 {[%emt 0:02:11]} 15. Rfc1 {[%emt 0:00:21]} Rc7 {[%emt 0:02:10]} 16. a3 {[%emt 0:01:08]} b5 {[%emt 0:08:01]} 17. a4 {[%emt 0:04:12]} b4 {[%emt 0:15:25]} 18. Na2 {[%emt 0:00:20]} Rfc8 {[%emt 0:00:53]} 19. Nxc6 {[%emt 0:00:18]} Rxc6 {[%emt 0:00:02]} 20. Rxc6 {[%emt 0:00:14]} Rxc6 {[%emt 0:00:01]} 21. Qxb4 {[%emt 0:00:14]} Qc7 {[%emt 0:00:08]} 22. Bd3 {[%emt 0:04:39]} Rb6 {[%emt 0:03:08]} 23. Qa5 {[%emt 0:00:24]} Qb7 {[%emt 0:00:28]} 24. Nb4 {[%emt 0:01:50]} Nd7 {[%emt 0:01:05]} 25. Nxa6 {[%emt 0:00:44]} Qa7 {[%emt 0:00:24]} 26. b4 {[%emt 0:00:27]} g6 {[%emt 0:00:46]} 27. Rc1 {[%emt 0:00:41]} Ne5 {[%emt 0:00:49]} 28. Rc7 {[%emt 0:00:51]} 1-0

[Event "Almaty Open 2019"]
[Site "Almaty"]
[Date "2019.10.13"]
[Round "8.13"]
[White "Sisabayev, Kuanysh"]
[Black "Nukin, Tolegen"]
[Result "1/2-1/2"]
[ECO "D32"]
[WhiteElo "2289"]
[BlackElo "2104"]
[Annotator "NA"]
[PlyCount "29"]
[EventDate "2019.10.07"]
[EventType "swiss"]
[EventCountry "KAZ"]
[SourceTitle "playchess.com"]
[Source "ChessBase"]
[SourceQuality "1"]
[TimeControl "5400+30"]

1. d4 {[%emt 0:11:08]} d5 {[%emt 0:00:00]} 2. c4 {[%emt 0:00:13]} e6 3. Nc3 c5 {[%emt 0:01:03]} 4. Nf3 {[%emt 0:00:48]} Nc6 {[%emt 0:00:15]} 5. cxd5 {[%emt 0:00:35]} exd5 {[%emt 0:00:03]} 6. e3 {[%emt 0:00:14]} Nf6 {[%emt 0:00:16]} 7. Be2 {[%emt 0:00:14]} cxd4 {[%emt 0:00:16]} 8. Nxd4 {[%emt 0:00:09]} Bd6 {[%emt 0:00:03]} 9. Bf3 {[%emt 0:00:14]} Be5 {[%emt 0:00:13]} 10. O-O {[%emt 0:00:10]} O-O {[%emt 0:00:08]} 11. b3 {[%emt 0:00:19]} Nxd4 {[%emt 0:00:54]} 12. exd4 {[%emt 0:00:12]} Bxh2+ {[%emt 0:00:15]} 13. Kxh2 {[%emt 0:00:33]} Qc7+ {[%emt 0:00:04]} 14. Kg1 {[%emt 0:00:08]} Qxc3 {[%emt 0:00:02]} 15. Ba3 1/2-1/2

[Event "Almaty Open 2019"]
[Site "Almaty"]
[Date "2019.10.13"]
[Round "8.14"]
[White "Igen, Amir"]
[Black "Dauletova, Gulmira"]
[Result "0-1"]
[ECO "E20"]
[WhiteElo "1934"]
[BlackElo "2259"]
[Annotator "NA"]
[PlyCount "76"]
[EventDate "2019.10.07"]
[EventType "swiss"]
[EventCountry "KAZ"]
[SourceTitle "playchess.com"]
[Source "ChessBase"]
[SourceQuality "1"]
[TimeControl "5400+30"]

1. d4 {[%emt 0:00:00]} Nf6 {[%emt 0:00:00]} 2. c4 {[%emt 0:00:00]} e6 {[%emt 0:00:00]} 3. Nc3 {[%emt 0:00:00]} Bb4 {[%emt 0:00:00]} 4. Bd2 {[%emt 0:00:18]} O-O {[%emt 0:01:30]} 5. Nf3 {[%emt 0:00:11]} d5 {[%emt 0:07:31]} 6. e3 {[%emt 0:01:29]} a6 {[%emt 0:05:07]} 7. a3 {[%emt 0:14:07]} Be7 {[%emt 0:04:26]} 8. Bd3 {[%emt 0:02:50]} dxc4 {[%emt 0:01:08]} 9. Bxc4 {[%emt 0:03:16]} c5 {[%emt 0:05:22]} 10. dxc5 {[%emt 0:02:27]} Bxc5 {[%emt 0:00:09]} 11. Qc2 {[%emt 0:02:00]} Nc6 {[%emt 0:01:09]} 12. Bd3 {[%emt 0:03:33]} h6 {[%emt 0:05:23]} 13. O-O {[%emt 0:06:42]} Ba7 {[%emt 0:10:00]} 14. Ne4 {[%emt 0:06:51]} Nd5 {[%emt 0:15:55]} 15. Nc5 {[%emt 0:04:38]} Qd6 {[%emt 0:03:38]} 16. Rac1 {[%emt 0:00:33]} Ne5 {[%emt 0:05:40]} 17. Nxe5 {[%emt 0:01:53]} Qxe5 {[%emt 0:00:01]} 18. f4 {[%emt 0:08:36]} Qf6 {[%emt 0:03:07]} 19. Ne4 {[%emt 0:09:12]} Qh4 {[%emt 0:03:05]} 20. Nc5 {[%emt 0:04:58]} Rd8 {[%emt 0:03:38]} 21. g3 {[%emt 0:09:33]} Qh5 {[%emt 0:04:30]} 22. Rf2 {[%emt 0:08:16]} Nf6 {[%emt 0:10:07]} 23. b4 {[%emt 0:01:54]} Ng4 {[%emt 0:01:32]} 24. Rg2 {[%emt 0:01:19]} b6 {[%emt 0:04:27]} 25. Na4 {[%emt 0:03:04]} Bb7 {[%emt 0:00:10]} 26. Be4 {[%emt 0:00:10]} Rac8 {[%emt 0:00:51]} 27. Nc3 {[%emt 0:00:10]} Bxe4 {[%emt 0:01:56]} 28. Qxe4 {[%emt 0:00:02]} b5 {[%emt 0:00:09]} 29. Kh1 {[%emt 0:03:21]} Nf6 {[%emt 0:02:42]} 30. Qb7 {[%emt 0:00:47]} Ra8 {[%emt 0:01:11]} 31. e4 Bd4 {[%emt 0:00:06]} 32. e5 {[%emt 0:03:08]} Bxc3 {[%emt 0:00:54]} 33. Bxc3 {[%emt 0:00:14]} Nd5 {[%emt 0:00:16]} 34. Bd4 {[%emt 0:00:12]} Qf3 {[%emt 0:00:19]} 35. Bc5 {[%emt 0:01:10]} Qxa3 {[%emt 0:00:06]} 36. Rgc2 {[%emt 0:00:28]} Rab8 {[%emt 0:00:23]} 37. Qc6 {[%emt 0:00:09]} Rbc8 {[%emt 0:00:29]} 38. Qb7 {[%emt 0:00:01]} Rc7 {[%emt 0:00:16]} 0-1

[Event "Almaty Open 2019"]
[Site "Almaty"]
[Date "2019.10.13"]
[Round "8.15"]
[White "Kairbekova, Amina"]
[Black "Malygin, Vladislav"]
[Result "1/2-1/2"]
[ECO "C54"]
[WhiteElo "2096"]
[BlackElo "1941"]
[Annotator "NA"]
[PlyCount "57"]
[EventDate "2019.10.07"]
[EventType "swiss"]
[EventCountry "KAZ"]
[SourceTitle "playchess.com"]
[Source "ChessBase"]
[SourceQuality "1"]
[TimeControl "5400+30"]

1. e4 {[%emt 0:00:00]} e5 {[%emt 0:00:00]} 2. Nf3 {[%emt 0:00:00]} Nc6 {[%emt 0:00:00]} 3. Bc4 {[%emt 0:00:00]} Bc5 {[%emt 0:01:11]} 4. c3 {[%emt 0:00:00]} Nf6 {[%emt 0:00:06]} 5. d4 {[%emt 0:00:00]} exd4 {[%emt 0:00:06]} 6. e5 {[%emt 0:00:00]} d5 {[%emt 0:01:20]} 7. Be2 {[%emt 0:00:00]} Ne4 {[%emt 0:00:53]} 8. cxd4 {[%emt 0:00:00]} Be7 {[%emt 0:05:08]} 9. O-O {[%emt 0:00:11]} O-O {[%emt 0:00:05]} 10. Nc3 {[%emt 0:00:19]} f6 {[%emt 0:02:15]} 11. Be3 {[%emt 0:14:58]} fxe5 {[%emt 0:09:03]} 12. dxe5 {[%emt 0:00:10]} Nxc3 {[%emt 0:07:31]} 13. bxc3 {[%emt 0:00:06]} Bg4 {[%emt 0:00:12]} 14. h3 {[%emt 0:05:16]} Bh5 {[%emt 0:01:41]} 15. Nd4 {[%emt 0:07:01]} Nxd4 {[%emt 0:10:21]} 16. cxd4 {[%emt 0:01:02]} Bxe2 {[%emt 0:01:34]} 17. Qxe2 {[%emt 0:00:04]} Qd7 {[%emt 0:02:09]} 18. f4 {[%emt 0:00:14]} Rac8 {[%emt 0:05:14]} 19. g4 {[%emt 0:01:48]} c5 {[%emt 0:00:34]} 20. Qf2 {[%emt 0:02:18]} cxd4 {[%emt 0:03:01]} 21. Bxd4 {[%emt 0:00:05]} Qa4 {[%emt 0:00:38]} 22. Rfd1 {[%emt 0:18:58]} Rc2 {[%emt 0:02:35]} 23. Qf3 {[%emt 0:03:39]} Qc4 {[%emt 0:10:13]} 24. f5 {[%emt 0:13:11]} Bc5 {[%emt 0:02:45]} 25. Bxc5 {[%emt 0:10:50]} Qxc5+ {[%emt 0:00:10]} 26. Kh1 {[%emt 0:00:02]} d4 {[%emt 0:00:39]} 27. Re1 {[%emt 0:10:06]} Rc3 {[%emt 0:08:34]} 28. Qg2 {[%emt 0:08:19]} Rc2 {[%emt 0:00:36]} 29. Qf3 {[%emt 0:02:03]} 1/2-1/2

[Event "Almaty Open 2019"]
[Site "Almaty"]
[Date "2019.10.13"]
[Round "8.16"]
[White "Zhukenov, Aituar"]
[Black "Zhakshylykov, Erzhan"]
[Result "1-0"]
[ECO "B90"]
[WhiteElo "2196"]
[BlackElo "1999"]
[Annotator "NA"]
[PlyCount "81"]
[EventDate "2019.10.07"]
[EventType "swiss"]
[EventCountry "KAZ"]
[SourceTitle "playchess.com"]
[Source "ChessBase"]
[SourceQuality "1"]
[TimeControl "5400+30"]

1. e4 {[%emt 0:00:00]} c5 {[%emt 0:00:00]} 2. Nf3 {[%emt 0:00:00]} d6 {[%emt 0:00:00]} 3. d4 {[%emt 0:00:00]} cxd4 {[%emt 0:00:28]} 4. Nxd4 {[%emt 0:00:00]} Nf6 {[%emt 0:00:35]} 5. Nc3 {[%emt 0:00:00]} a6 {[%emt 0:00:17]} 6. h3 {[%emt 0:00:00]} e5 {[%emt 0:02:03]} 7. Nde2 {[%emt 0:00:05]} h5 {[%emt 0:01:00]} 8. g3 {[%emt 0:00:05]} b5 {[%emt 0:03:32]} 9. Bg2 {[%emt 0:00:34]} Bb7 {[%emt 0:00:46]} 10. O-O {[%emt 0:04:23]} Nbd7 {[%emt 0:02:06]} 11. a4 {[%emt 0:03:02]} Nc5 {[%emt 0:05:54]} 12. axb5 {[%emt 0:21:39]} axb5 {[%emt 0:12:17]} 13. Rxa8 {[%emt 0:12:41]} Qxa8 {[%emt 0:00:12]} 14. Nxb5 {[%emt 0:07:22]} Qb8 {[%emt 0:00:29]} 15. Nbc3 {[%emt 0:04:15]} Ncxe4 {[%emt 0:04:19]} 16. Nxe4 {[%emt 0:06:09]} Nxe4 {[%emt 0:00:33]} 17. Qd3 {[%emt 0:03:09]} Qa8 {[%emt 0:08:46]} 18. Re1 {[%emt 0:11:11]} Qa5 {[%emt 0:03:57]} 19. Nc3 {[%emt 0:05:13]} Nc5 {[%emt 0:03:04]} 20. Qc4 {[%emt 0:02:16]} Bxg2 {[%emt 0:01:02]} 21. Kxg2 {[%emt 0:00:09]} Be7 {[%emt 0:10:29]} 22. Be3 {[%emt 0:03:29]} Qa6 {[%emt 0:23:03]} 23. Qxa6 {[%emt 0:00:58]} Nxa6 {[%emt 0:00:05]} 24. Nd5 {[%emt 0:03:50]} Bd8 {[%emt 0:00:30]} 25. Ra1 {[%emt 0:01:26]} Nc7 {[%emt 0:00:12]} 26. Nxc7+ {[%emt 0:01:23]} Bxc7 {[%emt 0:00:25]} 27. Ra8+ {[%emt 0:01:34]} Bd8 {[%emt 0:00:11]} 28. Bb6 {[%emt 0:04:00]} Kd7 {[%emt 0:00:31]} 29. c4 {[%emt 0:00:28]} Re8 {[%emt 0:00:33]} 30. Rxd8+ {[%emt 0:00:29]} Rxd8 {[%emt 0:00:06]} 31. Bxd8 {[%emt 0:00:05]} Kxd8 {[%emt 0:00:09]} 32. Kf3 {[%emt 0:00:44]} f5 {[%emt 0:00:48]} 33. g4 {[%emt 0:01:09]} hxg4+ {[%emt 0:01:47]} 34. hxg4 {[%emt 0:00:01]} g6 {[%emt 0:00:10]} 35. gxf5 {[%emt 0:01:01]} gxf5 {[%emt 0:00:08]} 36. Kg3 {[%emt 0:00:35]} Kd7 {[%emt 0:01:20]} 37. Kh4 {[%emt 0:00:33]} Kc6 {[%emt 0:00:32]} 38. b4 {[%emt 0:02:24]} f4 {[%emt 0:04:26]} 39. Kg4 {[%emt 0:00:24]} Kb6 {[%emt 0:02:42]} 40. Kf3 {[%emt 0:00:15]} Kc6 {[%emt 0:00:18]} 41. Ke4 {[%emt 0:00:02] Kd5+} 1-0

[Event "Almaty Open 2019"]
[Site "Almaty"]
[Date "2019.10.13"]
[Round "8.17"]
[White "Baimurzin, Aitkazy"]
[Black "Bizhigitov, Zhangir"]
[Result "0-1"]
[ECO "A05"]
[WhiteElo "2036"]
[BlackElo "2018"]
[Annotator "NA"]
[PlyCount "92"]
[EventDate "2019.10.07"]
[EventType "swiss"]
[EventCountry "KAZ"]
[SourceTitle "playchess.com"]
[Source "ChessBase"]
[SourceQuality "1"]
[TimeControl "5400+30"]

1. Nf3 {[%emt 0:00:00]} Nf6 {[%emt 0:00:00]} 2. g3 {[%emt 0:00:05]} g6 {[%emt 0:00:00]} 3. c4 {[%emt 0:00:16]} Bg7 {[%emt 0:00:00]} 4. Bg2 {[%emt 0:00:10]} O-O {[%emt 0:00:11]} 5. O-O {[%emt 0:00:20]} d6 {[%emt 0:00:16]} 6. Nc3 {[%emt 0:00:16]} e5 {[%emt 0:01:30]} 7. d3 {[%emt 0:01:44]} Nc6 {[%emt 0:02:42]} 8. Rb1 {[%emt 0:01:02]} a5 {[%emt 0:01:27]} 9. a3 {[%emt 0:03:06]} h6 {[%emt 0:00:59]} 10. b4 {[%emt 0:00:50]} axb4 {[%emt 0:01:19]} 11. axb4 {[%emt 0:00:09]} Be6 {[%emt 0:00:22]} 12. Nd2 {[%emt 0:06:20]} d5 {[%emt 0:10:57]} 13. b5 {[%emt 0:05:08]} Ne7 {[%emt 0:01:40]} 14. Qb3 {[%emt 0:03:56]} Re8 {[%emt 0:18:53]} 15. Ba3 {[%emt 0:08:11]} dxc4 {[%emt 0:02:05]} 16. Nxc4 {[%emt 0:09:41]} Ned5 {[%emt 0:04:46]} 17. Bb2 {[%emt 0:08:12]} Nxc3 {[%emt 0:14:14]} 18. Qxc3 {[%emt 0:04:11]} Nd5 {[%emt 0:02:12]} 19. Qc2 {[%emt 0:00:47]} Nb4 {[%emt 0:11:45]} 20. Qd2 {[%emt 0:08:42]} Bxc4 {[%emt 0:00:50]} 21. Qxb4 {[%emt 0:00:33]} Bd5 {[%emt 0:00:12]} 22. Qc5 {[%emt 0:01:53]} Bxg2 {[%emt 0:01:24]} 23. Kxg2 {[%emt 0:00:03]} Bf8 {[%emt 0:03:38]} 24. Qc4 {[%emt 0:00:42]} Bd6 {[%emt 0:07:23]} 25. e4 {[%emt 0:08:45]} Qe7 {[%emt 0:01:17]} 26. f4 {[%emt 0:05:20]} Qe6 {[%emt 0:03:04]} 27. Qc3 {[%emt 0:00:51]} Qd7 {[%emt 0:01:28]} 28. f5 {[%emt 0:01:26]} Qxb5 {[%emt 0:02:29]} 29. fxg6 {[%emt 0:01:51]} fxg6 {[%emt 0:00:18]} 30. Qd2 {[%emt 0:02:27]} Ra2 {[%emt 0:01:35]} 31. Qxh6 {[%emt 0:04:08]} Re6 {[%emt 0:01:13]} 32. Rf2 {[%emt 0:00:58]} Qe8 {[%emt 0:03:54]} 33. Rbf1 {[%emt 0:00:51]} Bc5 {[%emt 0:00:34]} 34. Re2 {[%emt 0:06:24]} Rb6 {[%emt 0:00:47]} 35. Qc1 {[%emt 0:01:25]} Bd4 {[%emt 0:00:55]} 36. Qc4+ {[%emt 0:02:10]} Qe6 {[%emt 0:00:51]} 37. Qxc7 {[%emt 0:00:59]} Rbxb2 {[%emt 0:00:14]} 38. Qd8+ {[%emt 0:00:38]} Kh7 {[%emt 0:00:07]} 39. Rxb2 {[%emt 0:01:41]} Rxb2+ {[%emt 0:00:02]} 40. Kh1 {[%emt 0:00:14]} Rf2 {[%emt 0:01:35]} 41. Qc7+ {[%emt 0:01:59]} Kh6 {[%emt 0:00:07]} 42. Rxf2 {[%emt 0:00:08]} Bxf2 {[%emt 0:00:04]} 43. Qxb7 {[%emt 0:00:05]} Qh3 {[%emt 0:00:33]} 44. Qb1 {[%emt 0:00:16]} Bxg3 {[%emt 0:00:09]} 45. Qg1 {[%emt 0:00:39]} Bf4 {[%emt 0:00:17]} 46. Qf2 {[%emt 0:00:20]} Qg4 {[%emt 0:00:38]} 0-1

[Event "Almaty Open 2019"]
[Site "Almaty"]
[Date "2019.10.13"]
[Round "8.18"]
[White "Kembayev, Bakhytzhan"]
[Black "Nurgaliyev, Sauat"]
[Result "1-0"]
[ECO "E06"]
[WhiteElo "2119"]
[BlackElo "1995"]
[Annotator "NA"]
[PlyCount "135"]
[EventDate "2019.10.07"]
[EventType "swiss"]
[EventCountry "KAZ"]
[SourceTitle "playchess.com"]
[Source "ChessBase"]
[SourceQuality "1"]
[TimeControl "5400+30"]

1. Nf3 {[%emt 0:00:06]} Nf6 {[%emt 0:00:00]} 2. d4 {[%emt 0:00:06]} e6 {[%emt 0:00:16]} 3. c4 {[%emt 0:00:09]} d5 {[%emt 0:00:04]} 4. g3 {[%emt 0:00:03]} Be7 {[%emt 0:00:13]} 5. Bg2 {[%emt 0:00:03]} O-O {[%emt 0:00:32]} 6. O-O {[%emt 0:00:03]} dxc4 {[%emt 0:00:04]} 7. Qc2 {[%emt 0:00:11]} a6 {[%emt 0:00:16]} 8. a4 {[%emt 0:00:01]} Bd7 {[%emt 0:00:23]} 9. Qxc4 {[%emt 0:00:09]} Bc6 {[%emt 0:02:30]} 10. Bg5 {[%emt 0:00:07]} Nbd7 {[%emt 0:04:06]} 11. Rd1 {[%emt 0:01:16]} Nb6 {[%emt 0:05:50]} 12. Qc2 {[%emt 0:00:14]} Nbd5 {[%emt 0:02:26]} 13. Bxf6 {[%emt 0:00:43]} Bxf6 {[%emt 0:03:37]} 14. Nbd2 {[%emt 0:00:25]} Nb4 {[%emt 0:01:05]} 15. Qc1 {[%emt 0:00:35]} Qd5 {[%emt 0:05:40]} 16. e4 {[%emt 0:01:11]} Qh5 {[%emt 0:03:15]} 17. a5 {[%emt 0:00:20]} Rac8 {[%emt 0:08:20]} 18. Qc3 {[%emt 0:00:37]} Be7 {[%emt 0:02:04]} 19. Ne5 {[%emt 0:00:24]} Bb5 {[%emt 0:01:46]} 20. Bf3 {[%emt 0:07:43]} Qh6 {[%emt 0:01:06]} 21. Nb3 {[%emt 0:05:56]} b6 {[%emt 0:02:02]} 22. h4 {[%emt 0:02:04]} c5 {[%emt 0:06:39]} 23. dxc5 {[%emt 0:00:33]} bxc5 {[%emt 0:00:19]} 24. Nd7 {[%emt 0:02:05]} Bxd7 {[%emt 0:14:24]} 25. Rxd7 {[%emt 0:00:16]} Rfe8 {[%emt 0:01:05]} 26. Rad1 {[%emt 0:00:32]} Bf8 {[%emt 0:03:39]} 27. e5 {[%emt 0:04:17]} c4 {[%emt 0:02:05]} 28. Nd2 {[%emt 0:06:48]} Na2 {[%emt 0:01:17]} 29. Qd4 {[%emt 0:04:17]} c3 {[%emt 0:01:21]} 30. bxc3 {[%emt 0:00:13]} Nxc3 {[%emt 0:00:41]} 31. Re1 {[%emt 0:00:34]} Bc5 {[%emt 0:01:19]} 32. Qd3 {[%emt 0:00:20]} Bb4 {[%emt 0:01:27]} 33. Bb7 {[%emt 0:00:43]} Rb8 {[%emt 0:01:29]} 34. Ra1 {[%emt 0:07:50]} Qh5 {[%emt 0:06:03]} 35. Nf3 {[%emt 0:01:27]} h6 {[%emt 0:02:06]} 36. Kg2 {[%emt 0:03:38]} Qg4 {[%emt 0:06:26]} 37. Rd4 {[%emt 0:00:31]} Qxd4 {[%emt 0:00:11]} 38. Nxd4 {[%emt 0:00:45]} Rxb7 {[%emt 0:00:06]} 39. Nc6 {[%emt 0:01:13]} Nd5 {[%emt 0:00:35]} 40. Qxa6 {[%emt 0:00:47]} Rc7 {[%emt 0:00:48]} 41. Nxb4 {[%emt 0:01:31]} Nxb4 {[%emt 0:00:28]} 42. Qb5 {[%emt 0:00:02]} Nc6 {[%emt 0:00:31]} 43. Rc1 {[%emt 0:00:16]} Rec8 {[%emt 0:00:09]} 44. a6 {[%emt 0:00:23]} Kh7 {[%emt 0:00:17]} 45. Qb6 {[%emt 0:01:44]} h5 {[%emt 0:01:27]} 46. a7 {[%emt 0:00:15]} Rxa7 {[%emt 0:00:30]} 47. Rxc6 {[%emt 0:00:10]} Rxc6 {[%emt 0:00:03]} 48. Qxa7 {[%emt 0:00:09]} Kg6 {[%emt 0:00:17]} 49. Qe7 {[%emt 0:00:04]} Rc8 {[%emt 0:00:29]} 50. Qg5+ {[%emt 0:00:06]} Kh7 {[%emt 0:00:11]} 51. Qxh5+ {[%emt 0:00:02]} Kg8 {[%emt 0:00:12]} 52. Qg5 {[%emt 0:00:02]} Kh7 {[%emt 0:00:23]} 53. h5 {[%emt 0:00:07]} Ra8 {[%emt 0:00:14]} 54. Qe7 {[%emt 0:00:17]} Kg8 {[%emt 0:00:07]} 55. g4 {[%emt 0:00:04]} Rb8 {[%emt 0:01:12]} 56. g5 {[%emt 0:00:06]} Ra8 {[%emt 0:00:19]} 57. g6 {[%emt 0:00:06]} Rf8 {[%emt 0:00:56]} 58. Kg3 {[%emt 0:00:13]} fxg6 {[%emt 0:00:30]} 59. hxg6 {[%emt 0:00:13]} Ra8 {[%emt 0:00:09]} 60. Qxe6+ {[%emt 0:00:10]} Kh8 {[%emt 0:00:19]} 61. Qh3+ {[%emt 0:00:04]} Kg8 {[%emt 0:00:06]} 62. Qh7+ {[%emt 0:00:05]} Kf8 {[%emt 0:00:31]} 63. Qh8+ {[%emt 0:00:04]} Ke7 {[%emt 0:00:30]} 64. Qxg7+ {[%emt 0:00:10]} Ke6 {[%emt 0:00:04]} 65. Qf6+ {[%emt 0:00:08]} Kd7 {[%emt 0:00:09]} 66. Qd6+ {[%emt 0:00:10]} Kc8 {[%emt 0:00:08]} 67. g7 {[%emt 0:00:10]} Kb7 {[%emt 0:00:07]} 68. Qd5+ {[%emt 0:00:13]} 1-0